fUSD/lending_fUSD_20260123
["ID","MTS","AMOUNT","RATE_DAILY","PERIOD"]
[403133501,1769182237929,-500.0,0.00013537,2]
[403133502,1769182237939,-500.0,0.00013537,2]
[403133503,1769182237948,-603.53056753,0.00013537,2]
[403133504,1769182237958,-314.70732996,0.00013537,2]
[403133505,1769182237968,-1000.0,0.00013538,2]
[403133506,1769182237977,-250.0,0.00013618,2]
[403133507,1769182237987,-500.0,0.00013698,2]
[403133508,1769182237996,-500.0,0.00013698,2]
[403133510,1769182238005,-500.0,0.00013698,2]
[403133512,1769182238014,-500.0,0.00013698,2]
[403133514,1769182238024,-500.0,0.00013698,2]
[403133517,1769182238033,-217.13,0.00013698,2]
[403133520,1769182238043,-512.44990602,0.00013698,2]
[403133523,1769182238053,-540.53985067,0.00013698,2]
[403133526,1769182238062,-500.0,0.00013698,2]
[403133529,1769182238072,-500.0,0.00013698,2]
[403133532,1769182238082,-500.0,0.00013698,2]
[403133534,1769182238091,-500.0,0.00013698,2]
[403133536,1769182238101,-500.0,0.00013698,2]
[403133538,1769182238112,-500.0,0.00013698,2]
[403133540,1769182238121,-509.79415361,0.00013698,2]
[403133542,1769182238131,-500.0,0.00013698,2]
[403133544,1769182238141,-500.0,0.00013698,2]
[403133546,1769182238151,-500.0,0.00013698,2]
[403133548,1769182238160,-195.0,0.0001392,2]
[403133550,1769182238170,-4093.99689987,0.00013971,2]
[403133552,1769182238180,-217.13,0.00013972,2]
[403133554,1769182238190,-978.07227061,0.00014,2]
[403133556,1769182238199,-11292.41485709,0.00014048,2]
[403133558,1769182238208,-217.13,0.00014246,2]
[403133559,1769182238218,-6589.86823495,0.0001439,2]
[403133562,1769182238228,-1532.0,0.00014487,2]
[403133563,1769182238238,-370.0,0.00014487,2]
[403133566,1769182238248,-4093.99689987,0.00014505,2]
[403133567,1769182238258,-424.0,0.00014516,2]
[403133568,1769182238267,-217.13,0.0001452,2]
[403133569,1769182238276,-360.0,0.00014545,2]
[403133570,1769182238285,-255.0,0.00014552,2]
[403133571,1769182238294,-1967.0,0.00014553,2]
[403133572,1769182238303,-356.0,0.00014574,2]
[403133573,1769182238313,-300.0,0.00014598,2]
[403133574,1769182238322,-600.0,0.00014598,2]
[403133575,1769182238331,-195.0,0.00014598,2]
[403133576,1769182238340,-316.0,0.00014603,2]
[403133577,1769182238350,-359.0,0.00014631,2]
[403133578,1769182238359,-515.0,0.00014711,2]
[403133579,1769182238368,-225.0,0.00014729,2]
[403133580,1769182238377,-1432.0,0.00014741,2]
[403133581,1769182238387,-1508.0,0.0001477,2]
[403133582,1769182238397,-1680.0,0.0001478,2]
[403133583,1769182238407,-195.0,0.00014781,2]
[403133584,1769182238417,-195.0,0.00014782,2]
[403133585,1769182238426,-253.87017634,0.00014782,2]
[403133586,1769182238435,-300.0,0.00014782,2]
[403133587,1769182238444,-219.00874883,0.00014793,2]
[403133588,1769182238454,-217.15,0.00014794,2]
[403133589,1769182238463,-195.0,0.00014892,2]
[403133590,1769182238473,-250.0,0.00014892,2]
[403133591,1769182238483,-154.96694982,0.000149,2]
[403133592,1769182238494,-2842.71918137,0.000149,2]
[403133593,1769182238503,-200.0,0.0001493,2]
[403133594,1769182238513,-9444.98687458,0.00015,2]
[403133595,1769182238527,-4093.99689987,0.00015038,2]
[403133596,1769182238536,-376.53794794,0.00015255,2]
[403133597,1769182238547,-40000.0,0.00015294,5]
[403133598,1769182238556,-1255.08479104,0.000153,2]
[403133599,1769182238565,-500.0,0.000153,2]
[403133600,1769182238574,-322.6107,0.00015343,2]
[403133601,1769182238583,-500.0,0.00015343,2]
[403133602,1769182238593,-500.0,0.00015343,2]
[403133603,1769182238602,-500.0,0.00015343,2]
[403133604,1769182238612,-500.0,0.00015343,2]
[403133605,1769182238621,-500.0,0.00015343,2]
[403133606,1769182238630,-500.0,0.00015343,2]
[403133607,1769182238640,-500.0,0.00015343,2]
[403133608,1769182238649,-500.0,0.00015343,2]
[403133609,1769182238659,-500.0,0.00015343,2]
[403133610,1769182238669,-500.0,0.00015343,2]
[403133611,1769182238678,-500.0,0.00015343,2]
[403133612,1769182238688,-151.0,0.00015343,2]
[403133613,1769182238698,-151.0,0.00015343,2]
[403133614,1769182238707,-151.0,0.00015343,2]
[403133615,1769182238717,-151.0,0.00015343,2]
[403133616,1769182238727,-151.0,0.00015343,2]
[403133617,1769182238736,-151.0,0.00015343,2]
[403133618,1769182238746,-151.0,0.00015343,2]
[403133619,1769182238755,-151.0,0.00015343,2]
[403133620,1769182238764,-151.0,0.00015343,2]
[403133621,1769182238773,-151.0,0.00015343,2]
[403133622,1769182238783,-151.0,0.00015343,2]
[403133623,1769182238792,-1628.0,0.00015375,2]
[403133624,1769182238802,-151.0,0.00015483,2]
[403133625,1769182238812,-4093.99689987,0.00015572,2]
[403133626,1769182238822,-500.0,0.00015574,2]
[403133627,1769182238831,-195.0,0.00015761,2]
[403133628,1769182238840,-500.0,0.00015848,2]
[403133629,1769182238850,-157.10445278,0.00015911,2]
[403133630,1769182238859,-1561.04213077,0.00015911,2]
[403133631,1769182238872,-545.8,0.00015918,2]
[403133632,1769182238881,-2482.63707895,0.0001596,2]
[403133633,1769182238891,-3970871.26966074,0.00016,4]
[403133634,1769182238900,-4093.99689987,0.00016105,2]
[403133635,1769182238910,-500.0,0.00016122,2]
[403133636,1769182238919,-5000.00738001,0.000162,5]
[403133637,1769182238929,-1373.0,0.00016258,2]
[403133638,1769182238941,-500.0,0.00016396,2]
[403133639,1769182238951,-1989.44277703,0.00016489,2]
[403133640,1769182238961,-545.8,0.00016515,2]
[403133641,1769182238971,-3240.0,0.00016555,2]
[403133642,1769182238981,-4093.99689987,0.00016639,2]
[403133643,1769182238991,-3569.51,0.00016651,2]
[403133644,1769182239000,-500.0,0.0001667,2]
[403133645,1769182239010,-299.11729807,0.00016712,2]
[403133646,1769182239019,-845.0,0.0001672,2]
[403133647,1769182239028,-272.98,0.00016772,2]
[403133648,1769182239037,-6633.81,0.00016839,2]
[403133649,1769182239047,-53101.53,0.00016839,2]
[403133650,1769182239057,-157.10445278,0.00016906,2]
[403133651,1769182239067,-1561.04213075,0.00016906,2]
[403133652,1769182239076,-250.0,0.00017,2]
[403133653,1769182239086,-545.8,0.00017112,2]
[403133654,1769182239095,-4093.99689987,0.00017172,2]
[403133655,1769182239105,-1000.0,0.00017339,2]
[403133656,1769182239116,-158.65816027,0.00017467,2]
[403133657,1769182239126,-168.0,0.00017509,2]
[403133658,1769182239136,-200.0,0.00017703,2]
[403133659,1769182239143,-4093.99689987,0.00017706,2]
[403133660,1769182239151,-545.8,0.00017709,2]
[403133661,1769182239159,-250.42435544,0.00017755,2]
[403133662,1769182239166,-167.0,0.00017873,2]
[403133663,1769182239173,-157.10445278,0.000179,2]
[403133664,1769182239180,-1561.04213075,0.000179,2]
[403133665,1769182239187,-500.0,0.00017998,2]
[403133666,1769182239197,-222.43966882,0.00017999,2]
[403133667,1769182239207,-4941391.62640018,0.00018,2]
[403133674,1769182239748,-823.71219047,0.00013338,2]
[403133675,1769182240011,-386.77527977,0.00013338,2]
[403133676,1769182240026,-899.4,0.00013338,2]
[403133734,1769182243005,-227.52554882,0.00013338,2]
[403133735,1769182243016,-6172.6606,0.00013438,2]
[403133736,1769182243029,-195.14,0.00014037,2]
[403133737,1769182243039,-4859.87741152,0.00018,2]
[403133738,1769182243054,-785.17448638,0.00018,2]
[403133881,1769182245541,-237.0033,0.00013438,2]
[403133882,1769182245552,-309.49230203,0.0001399,2]
[403133883,1769182245853,-2027.92071696,0.0001399,2]
[403133884,1769182245868,-151.0,0.00017053,2]
[403133885,1769182245879,-5246.78281231,0.00018,2]
[403133886,1769182245894,-310.25882034,0.00018,2]
[403133887,1769182245934,-282.1056861,0.00018,2]
[403133904,1769182377193,8342.4277571,0.00013238,2]
[403133905,1769182381739,300.0,0.00013337,2]
[403133906,1769182383571,246.0,0.00013337,2]
[403133907,1769182401045,242.9,0.000133,2]
[403133914,1769182425978,391.7365885,0.00013238,2]
[403133915,1769182447744,476.9456544,7.945e-05,2]
[403133916,1769182447812,164.6913556,7.945e-05,2]
[403133917,1769182471991,9835.3186444,0.00013328,2]
[403133918,1769182472069,10000.01,0.00013328,2]
[403133919,1769182472144,10000.01,0.00013328,2]
[403133920,1769182472221,10000.01,0.00013328,2]
[403133921,1769182472295,10000.01,0.00013328,2]
[403133922,1769182472364,10000.01,0.00013328,2]
[403133923,1769182472432,10000.01,0.00013328,2]
[403133924,1769182472500,10000.01,0.00013328,2]
[403133925,1769182472565,5865.34734418,0.00013328,2]
[403133930,1769182497826,619.49014772,0.00013238,2]
[403133931,1769182501348,300.0,0.00013337,2]
[403133932,1769182501433,1200.0,0.00013337,2]
[403133933,1769182518159,2015.1725081,0.00013238,2]
[403133934,1769182518243,328.99993135,0.00013238,2]
[403133935,1769182527711,330.71081282,0.00013238,2]
[403133936,1769182538978,-167.6921,0.00013338,2]
[403133937,1769182539013,-1870.16569033,0.00013338,2]
[403133938,1769182539066,-609.63561384,0.00013338,2]
[403133939,1769182539179,-540.17329968,0.00013338,2]
[403133940,1769182539270,-500.0,0.00013338,2]
[403133941,1769182539357,-281.0,0.00013338,2]
[403133942,1769182539455,-315.12796767,0.00013338,2]
[403133943,1769182539572,-187.8114,0.00013338,2]
[403133944,1769182539662,-459.11746404,0.00013338,2]
[403133945,1769182539752,-1106.94108937,0.00013338,2]
[403133946,1769182539839,-415.0,0.00013338,2]
[403133947,1769182539932,-1145.81781612,0.00013338,2]
[403133948,1769182540025,-300.0,0.00013338,2]
[403133949,1769182540123,-261.32804844,0.00013338,2]
[403133955,1769182602953,2941.43916694,0.00013238,2]
[403133956,1769182626873,152.13538667,0.00013238,2]
[403133957,1769182628675,210.53435129,0.00013338,2]
[403133958,1769182632235,245.9830133,0.00013338,2]
[403133959,1769182638621,500.0,0.00013338,2]
[403133960,1769182639227,500.0,0.00013338,2]
[403133961,1769182639838,500.0,0.00013338,2]
[403133962,1769182640460,500.0,0.00013338,2]
[403133963,1769182641115,500.0,0.00013338,2]
[403133964,1769182644545,240.05478706,0.00013338,2]
[403133965,1769182648529,2500.0,0.00013238,2]
[403133971,1769182652599,151.0,0.00013338,2]
[403133972,1769182653240,151.0,0.00013338,2]
[403133973,1769182653862,151.0,0.00013338,2]
[403133974,1769182654507,97.15255057,0.00013338,2]
[403133975,1769182654612,53.84744943,0.00013338,2]
[403133976,1769182655350,151.0,0.00013338,2]
[403133977,1769182660807,-151.0,0.00013338,2]
[403133978,1769182660887,-151.0,0.00013338,2]
[403133979,1769182660974,-151.0,0.00013338,2]
[403133980,1769182661052,-151.0,0.00013338,2]
[403133981,1769182661131,-151.0,0.00013338,2]
[403133982,1769182661213,-151.0,0.00013338,2]
[403133983,1769182663956,673.31186416,0.00013238,2]
[403133984,1769182664690,-500.0,0.00013338,2]
[403133985,1769182681773,-3889.65781708,0.00013338,2]
[403133986,1769182682061,-10000.01,0.00013338,2]
[403133987,1769182682704,-10000.01,0.00013338,2]
[403133988,1769182693194,-10000.01,0.00013338,2]
[403133989,1769182693512,-10000.01,0.00013338,2]
[403133990,1769182693814,-10000.01,0.00013338,2]
[403133994,1769182711232,626.63656431,0.00013238,2]
[403134001,1769182775197,1038.43437312,0.00013238,2]
[403134002,1769182775221,1461.56562688,0.00013238,2]
[403134003,1769182781819,172.0,6.2e-07,2]
[403134018,1769182807256,2204.60857984,0.00013238,2]
[403134051,1769182819206,678.32616349,0.00013238,2]
[403134065,1769182853907,351.67469,0.00013203,2]
[403134070,1769182887595,940.19963487,0.00013238,2]
[403134071,1769182892844,4334.802,0.00013071,2]
[403134072,1769182892880,359.585,0.00013071,2]
[403134073,1769182916110,-1883.4138895,0.00013238,2]
[403134074,1769182916193,-6233.182221,0.00013238,2]
[403134075,1769182916611,-259.0,0.0001327,2]
[403134076,1769182916696,-1173.0,0.00013337,2]
[403134077,1769182916781,-150.0,0.00013337,2]
[403134078,1769182916866,-300.0,0.00013337,2]
[403134079,1769182916951,-300.0,0.00013337,2]
[403134080,1769182917036,-300.0,0.00013337,2]
[403134081,1769182917130,-1200.0,0.00013337,2]
[403134082,1769182921492,300.0,0.00013337,2]
[403134083,1769182922169,300.0,0.00013337,2]
[403134084,1769182922406,150.0,0.00013337,2]
[403134085,1769182923037,300.0,0.00013337,2]
[403134086,1769182924381,1586.01,0.00013238,2]
[403134087,1769182924468,10000.01,0.00013238,2]
[403134088,1769182924491,1113.98769508,0.00013238,2]
[403134090,1769182928959,-7364.0,0.00013238,2]
[403134096,1769182950653,-10000.01,0.00013238,2]
[403134101,1769183022454,-10000.01,0.00013238,2]
[403134102,1769183022980,-10000.01,0.00013238,2]
[403134103,1769183023298,-10000.01,0.00013238,2]
[403134104,1769183023765,-10000.01,0.00013238,2]
[403134105,1769183024000,-10000.01,0.00013238,2]
[403134106,1769183024270,-874.91119508,0.00013238,2]
[403134107,1769183024371,-8250.18760984,0.00013238,2]
[403134108,1769183024524,-2500.0,0.00013238,2]
[403134109,1769183024613,-237.426,0.00013238,2]
[403134110,1769183024699,-452.5683,0.00013238,2]
[403134111,1769183024780,-237.0033,0.00013238,2]
[403134112,1769183024858,-500.0,0.00013238,2]
[403134113,1769183024953,-615.56265547,0.00013238,2]
[403134114,1769183025343,-2832.06185801,0.00013238,2]
[403134115,1769183025428,-164.89685224,0.00013337,2]
[403134116,1769183025510,-500.0,0.00013337,2]
[403134117,1769183025592,-513.03343566,0.00013337,2]
[403134118,1769183025672,-500.0,0.00013337,2]
[403134119,1769183025753,-480.02570818,0.00013337,2]
[403134120,1769183026049,-19.97429182,0.00013337,2]
[403134121,1769183026473,-365.48136679,0.00013337,2]
[403134122,1769183026557,-211.61211125,0.00013337,2]
[403134123,1769183026649,-500.0,0.00013337,2]
[403134124,1769183026744,-500.0,0.00013337,2]
[403134125,1769183026832,-500.0,0.00013337,2]
[403134126,1769183026926,-500.0,0.00013337,2]
[403134127,1769183027020,-500.0,0.00013337,2]
[403134128,1769183027112,-500.0,0.00013337,2]
[403134129,1769183027207,-500.0,0.00013337,2]
[403134130,1769183027299,-500.0,0.00013337,2]
[403134131,1769183027384,-305.87446028,0.00013337,2]
[403134132,1769183029403,-128.9893206,0.00013337,2]
[403134133,1769183029480,-65.13621912,0.00013337,2]
[403134134,1769183029489,-434.86378088,0.00013337,2]
[403134135,1769183029560,-65.13621912,0.00013337,2]
[403134136,1769183029570,-434.86378088,0.00013337,2]
[403134137,1769183029867,-65.13621912,0.00013337,2]
[403134138,1769183029952,-500.0,0.00013337,2]
[403134139,1769183030033,-500.0,0.00013337,2]
[403134140,1769183030108,-500.0,0.00013337,2]
[403134141,1769183030183,-500.0,0.00013337,2]
[403134142,1769183030257,-431.0016156,0.00013337,2]
[403134143,1769183030329,-500.0,0.00013337,2]
[403134144,1769183030399,-500.0,0.00013337,2]
[403134145,1769183030475,-500.0,0.00013337,2]
[403134146,1769183030551,-500.0,0.00013337,2]
[403134147,1769183030622,-500.0,0.00013337,2]
[403134148,1769183030827,-500.0,0.00013337,2]
[403134149,1769183030900,-500.0,0.00013337,2]
[403134150,1769183030971,-500.0,0.00013337,2]
[403134151,1769183031043,-500.0,0.00013337,2]
[403134152,1769183031115,-500.0,0.00013337,2]
[403134153,1769183031189,-500.0,0.00013337,2]
[403134154,1769183031272,-500.0,0.00013337,2]
[403134155,1769183031358,-500.0,0.00013337,2]
[403134156,1769183031444,-500.0,0.00013337,2]
[403134157,1769183031528,-500.0,0.00013337,2]
[403134158,1769183033899,-7.73433056,0.00013336,2]
[403134159,1769183033968,-0.01,0.00013336,2]
[403134160,1769183035878,-492.25566944,0.00013336,2]
[403134161,1769183035968,-500.0,0.00013337,2]
[403134162,1769183036050,-500.0,0.00013337,2]
[403134163,1769183036145,-500.0,0.00013337,2]
[403134164,1769183036240,-500.0,0.00013337,2]
[403134165,1769183036333,-500.0,0.00013337,2]
[403134166,1769183036419,-500.0,0.00013337,2]
[403134167,1769183036508,-500.0,0.00013337,2]
[403134168,1769183036600,-500.0,0.00013337,2]
[403134169,1769183036693,-500.0,0.00013337,2]
[403134170,1769183037108,-500.0,0.00013337,2]
[403134171,1769183037201,-500.0,0.00013337,2]
[403134172,1769183037298,-500.0,0.00013337,2]
[403134173,1769183037391,-500.0,0.00013337,2]
[403134174,1769183037488,-259.01532089,0.00013337,2]
[403134175,1769183037594,-500.0,0.00013337,2]
[403134176,1769183037680,-500.0,0.00013337,2]
[403134177,1769183037789,-500.0,0.00013337,2]
[403134178,1769183037874,-500.0,0.00013337,2]
[403134179,1769183037965,-500.0,0.00013337,2]
[403134180,1769183039181,-500.0,0.00013337,2]
[403134181,1769183039280,-500.0,0.00013337,2]
[403134182,1769183039378,-500.0,0.00013337,2]
[403134183,1769183039475,-500.0,0.00013337,2]
[403134184,1769183039570,-500.0,0.00013337,2]
[403134185,1769183039667,-500.0,0.00013337,2]
[403134186,1769183039754,-500.0,0.00013337,2]
[403134187,1769183039830,-500.0,0.00013337,2]
[403134188,1769183039913,-500.0,0.00013337,2]
[403134189,1769183039993,-500.0,0.00013337,2]
[403134190,1769183040324,-500.0,0.00013337,2]
[403134191,1769183040419,-500.0,0.00013337,2]
[403134192,1769183040511,-550.0,0.00013337,2]
[403134193,1769183040600,-500.0,0.00013337,2]
[403134194,1769183040686,-500.0,0.00013337,2]
[403134195,1769183040780,-500.0,0.00013337,2]
[403134196,1769183040870,-500.0,0.00013337,2]
[403134197,1769183040951,-500.0,0.00013337,2]
[403134198,1769183041028,-500.0,0.00013337,2]
[403134199,1769183041105,-400.01,0.00013337,2]
[403134200,1769183041275,-99.99,0.00013337,2]
[403134201,1769183041364,-500.0,0.00013337,2]
[403134202,1769183041440,-500.0,0.00013338,2]
[403134203,1769183041516,-151.0,0.00013338,2]
[403134204,1769183041604,-151.0,0.00013338,2]
[403134205,1769183041681,-151.0,0.00013338,2]
[403134206,1769183041764,-151.0,0.00013338,2]
[403134207,1769183041841,-216.98249641,0.00013338,2]
[403134208,1769183045686,-151.0,0.00013338,2]
[403134209,1769183045755,-151.0,0.00013338,2]
[403134210,1769183045822,-151.0,0.00013338,2]
[403134211,1769183045952,-216.98249641,0.00013338,2]
[403134212,1769183046023,-6158.06500718,0.00013338,2]
[403134213,1769183046103,-10000.01,0.00013338,2]
[403134214,1769183046254,-10000.01,0.00013338,2]
[403134215,1769183046414,-10000.01,0.00013338,2]
[403134216,1769183067739,2472.4913,0.00013238,2]
[403134217,1769183074403,7527.5187,0.00013238,2]
[403134218,1769183074477,10000.01,0.00013238,2]
[403134219,1769183074558,10000.01,0.00013238,2]
[403134220,1769183074632,601.6639,0.00013238,2]
[403134221,1769183080079,2500.0,0.00013238,2]
[403134226,1769183088256,2063.30799073,0.00013238,2]
[403134227,1769183101247,300.0,0.00013337,2]
[403134228,1769183101355,1200.0,0.00013337,2]
[403134229,1769183102556,150.0,0.00013337,2]
[403134230,1769183103043,300.0,0.00013337,2]
[403134231,1769183113450,259.01532088,0.00013337,2]
[403134232,1769183128860,237.0033,0.00013238,2]
[403134233,1769183129786,410.37510364,0.00013238,2]
[403134237,1769183170323,1000.0,0.00013337,2]
[403134238,1769183207092,181.31072462,0.00013337,2]
[403134239,1769183207200,304.37989207,0.00013337,2]
[403134241,1769183217534,4117.0425,0.00013238,2]
[403134242,1769183223388,1540.88315879,0.00013238,2]
[403134243,1769183223475,10000.01,0.00013238,2]
[403134244,1769183223557,10000.01,0.00013238,2]
[403134245,1769183223638,8459.12684121,0.00013238,2]
[403134246,1769183225950,151.0,0.00013338,2]
[403134247,1769183226559,151.0,0.00013338,2]
[403134248,1769183227199,151.0,0.00013338,2]
[403134249,1769183228032,151.0,0.00013338,2]
[403134250,1769183228425,151.0,0.00013338,2]
[403134251,1769183229035,151.0,0.00013338,2]
[403134252,1769183229664,151.0,0.00013338,2]
[403134253,1769183229860,483.88315879,0.00013238,2]
[403134254,1769183229944,2016.11684121,0.00013238,2]
[403134255,1769183230272,151.0,0.00013338,2]
[403134256,1769183230876,151.0,0.00013338,2]
[403134257,1769183231505,151.0,0.00013338,2]
[403134258,1769183231676,500.0,0.00013338,2]
[403134259,1769183232187,151.0,0.00013338,2]
[403134260,1769183232307,151.0,0.00013338,2]
[403134261,1769183232546,500.0,0.00013338,2]
[403134262,1769183232664,500.0,0.00013338,2]
[403134263,1769183232793,151.0,0.00013338,2]
[403134264,1769183232919,151.0,0.00013338,2]
[403134265,1769183233033,500.0,0.00013338,2]
[403134266,1769183233157,500.0,0.00013237,2]
[403134267,1769183233359,500.0,0.00013338,2]
[403134268,1769183233676,151.0,0.00013338,2]
[403134269,1769183233809,500.0,0.00013237,2]
[403134270,1769183233918,151.0,0.00013338,2]
[403134271,1769183234034,500.0,0.00013338,2]
[403134272,1769183234147,500.0,0.00013338,2]
[403134273,1769183234271,500.0,0.00013237,2]
[403134274,1769183234482,151.0,0.00013338,2]
[403134275,1769183234615,151.0,0.00013338,2]
[403134276,1769183234759,500.0,0.00013338,2]
[403134277,1769183234867,500.0,0.00013237,2]
[403134278,1769183234976,322.89315879,0.00013338,2]
[403134279,1769183235062,177.10684121,0.00013338,2]
[403134280,1769183235303,500.0,0.00013237,2]
[403134281,1769183235416,151.0,0.00013338,2]
[403134282,1769183235527,151.0,0.00013338,2]
[403134283,1769183235649,500.0,0.00013338,2]
[403134284,1769183235787,500.0,0.00013237,2]
[403134285,1769183235993,151.0,0.00013338,2]
[403134286,1769183236105,500.0,0.00013237,2]
[403134287,1769183236215,151.0,0.00013338,2]
[403134288,1769183236322,202.88619949,0.00013237,2]
[403134289,1769183236505,500.0,0.00013338,2]
[403134290,1769183236696,500.0,0.00013338,2]
[403134291,1769183236827,500.0,0.00013237,2]
[403134292,1769183237038,151.0,0.00013338,2]
[403134293,1769183237208,151.0,0.00013338,2]
[403134294,1769183237370,500.0,0.00013237,2]
[403134295,1769183237508,500.0,0.00013338,2]
[403134296,1769183237616,500.0,0.00013338,2]
[403134297,1769183237742,500.0,0.00013237,2]
[403134298,1769183238338,151.0,0.00013338,2]
[403134299,1769183238502,200.0,0.00013338,2]
[403134300,1769183238607,151.0,0.00013338,2]
[403134301,1769183238723,500.0,0.00013237,2]
[403134302,1769183238832,500.0,0.00013338,2]
[403134303,1769183238951,500.0,0.00013338,2]
[403134304,1769183239200,500.0,0.00013237,2]
[403134305,1769183239344,151.0,0.00013338,2]
[403134306,1769183239567,151.0,0.00013338,2]
[403134307,1769183239762,354.31873916,0.00013237,2]
[403134308,1769183239879,55.69822014,0.00013338,2]
[403134309,1769183239970,444.30177986,0.00013338,2]
[403134310,1769183240070,500.0,0.00013338,2]
[403134311,1769183240211,151.0,0.00013338,2]
[403134312,1769183240350,151.0,0.00013338,2]
[403134313,1769183240462,500.0,0.00013338,2]
[403134314,1769183240552,500.0,0.00013338,2]
[403134315,1769183241229,155.48383529,0.00013338,2]
[403134316,1769183241495,500.0,0.00013338,2]
[403134317,1769183241704,500.0,0.00013338,2]
[403134318,1769183243160,500.0,0.00013338,2]
[403134319,1769183245442,-933.25249412,0.00013338,2]
[403134320,1769183245535,-10000.01,0.00013338,2]
[403134321,1769183245878,200.0,0.00013338,2]
[403134322,1769183247590,-9800.01,0.00013338,2]
[403134323,1769183259377,-200.0,0.00013338,2]
[403134324,1769183282139,500.0,0.00013337,2]
[403134325,1769183282254,500.0,0.00013337,2]
[403134326,1769183282366,500.0,0.00013337,2]
[403134327,1769183282480,500.0,0.00013337,2]
[403134328,1769183282581,150.0,0.00013337,2]
[403134329,1769183282684,500.0,0.00013337,2]
[403134330,1769183282802,500.0,0.00013337,2]
[403134331,1769183282910,500.0,0.00013337,2]
[403134332,1769183283020,500.0,0.00013337,2]
[403134333,1769183283138,500.0,0.00013337,2]
[403134334,1769183283252,500.0,0.00013337,2]
[403134335,1769183283364,500.0,0.00013337,2]
[403134336,1769183283471,500.0,0.00013337,2]
[403134337,1769183283585,500.0,0.00013337,2]
[403134338,1769183283698,500.0,0.00013337,2]
[403134339,1769183283806,500.0,0.00013337,2]
[403134340,1769183283927,500.0,0.00013337,2]
[403134341,1769183284032,500.0,0.00013337,2]
[403134342,1769183284148,500.0,0.00013337,2]
[403134343,1769183284260,450.01,0.00013337,2]
[403134344,1769183284355,49.99,0.00013337,2]
[403134345,1769183284464,500.0,0.00013337,2]
[403134346,1769183284585,500.0,0.00013337,2]
[403134347,1769183284694,500.0,0.00013337,2]
[403134348,1769183284831,500.0,0.00013337,2]
[403134349,1769183284946,500.0,0.00013337,2]
[403134350,1769183285054,500.0,0.00013337,2]
[403134351,1769183285160,500.0,0.00013337,2]
[403134352,1769183285270,500.0,0.00013337,2]
[403134353,1769183285396,500.0,0.00013337,2]
[403134354,1769183285612,249.6684806,0.00013337,2]
[403134355,1769183285710,500.0,0.00013337,2]
[403134356,1769183285811,500.0,0.00013337,2]
[403134357,1769183285918,500.0,0.00013337,2]
[403134358,1769183286025,500.0,0.00013337,2]
[403134359,1769183286141,500.0,0.00013337,2]
[403134360,1769183286292,500.0,0.00013337,2]
[403134361,1769183286417,500.0,0.00013337,2]
[403134362,1769183286543,500.0,0.00013337,2]
[403134363,1769183286664,500.0,0.00013337,2]